Cogmind - Beta 17 @@@ ROGUE MODE // 2026.08.10 @ 01:19:01 Player: Marc Result: Destroyed by G-47 Trooper with Particle Gun Performance ------------- Evolutions (1) 500 Regions Visited (6) 1200 Robots Destroyed (32) 160 Value Destroyed (874) 874 Prototype IDs (3) 60 Alien Tech Used (0) 0 Bonus (300) 300 TOTAL SCORE: 3094 Bonus ------- Aligned with FarCom 300 Cogmind --------- Core Integrity 0/400 Matter 300/300 Energy 160/160 System Corruption 0% Temperature Warm (104) Movement Walking (120) Location -8/Mines Parts ------- > --- POWER (1) -------- Light Nuclear Core > --- PROPULSION (3) --- Aluminum Leg Carbon-fiber Leg Carbon-fiber Leg > --- UTILITY (3) ------ Trap Reconfigurator > --- WEAPON (2) ------- Axe > --- INVENTORY (5) ---- Aluminum Leg Small Storage Unit Trap Extractor (0/4) Peak State ------------ > --- POWER ------------ Ion Engine > --- PROPULSION ------- Aluminum Leg Aluminum Leg > --- UTILITY ---------- Lightpack 2.0 > --- WEAPON ----------- Plasma Cannon > --- INVENTORY -------- Improved Treads Small Storage Unit Improved Shield Generator Component Analysis Suite Trap Extractor [Rating: 38] Favorites ----------- Power Ion Engine Engine Ion Engine Power Core Light Nuclear Core Propulsion Aluminum Leg Treads Improved Treads Leg Aluminum Leg Wheel Wheel Hover Unit Hover Unit Flight Unit Flight Unit Utility Improved Terrain Scanner Device Improved Terrain Scanner Storage Small Storage Unit Weapon Plasma Cannon Energy Gun EM Shotgun Energy Cannon Plasma Cannon Ballistic Gun Assault Rifle Launcher Rocket Launcher Special Weapon Plasma Flamer Slashing Weapon Axe Build | -11 -10 -10 -9 -9 -9 -8 ------- Run | Yrd Mat Min Mat Min Exi Min Slots Evolved 2 | . . . 2 . . . Power . | . . . . . . . Propulsion 1 | . . . 1 . . . Utility 1 | . . . 1 . . . Weapon . | . . . . . . . Parts Attached 43 | 6 4 4 11 8 4 6 Power 4 | 1 . . 1 1 . 1 Engine 3 | 1 . . 1 1 . . Core 1 | . . . . . . 1 Reactor . | . . . . . . . Propulsion 17 | 2 3 2 4 2 . 4 Treads 2 | . . . 2 . . . Leg 8 | . . 2 . 2 . 4 Wheel 3 | 2 1 . . . . . Hover 2 | . 2 . . . . . Flight 2 | . . . 2 . . . Utility 14 | 1 1 . 4 4 4 . Device 11 | . 1 . 4 4 2 . Storage 3 | 1 . . . . 2 . Processor . | . . . . . . . Hackware . | . . . . . . . Protection . | . . . . . . . Artifact . | . . . . . . . Weapon 8 | 2 . 2 2 1 . 1 Energy Gun 1 | . . . 1 . . . Energy Cannon 2 | . . . 1 1 . . Ballistic Gun 2 | 2 . . . . . . Ballistic Cannon . | . . . . . . . Launcher 1 | . . 1 . . . . Special Weapon 1 | . . 1 . . . . Impact Weapon . | . . . . . . . Slashing Weapon 1 | . . . . . . 1 Piercing Weapon . | . . . . . . . Special Melee Weapon . | . . . . . . . Unidentified Prototypes 3 | . . . . . 3 . Parts Lost 17 | . 1 5 7 1 . 3 Power 2 | . . 1 . 1 . . Propulsion 6 | . 1 2 3 . . . Utility 4 | . . 1 1 . . 2 Weapon 5 | . . 1 3 . . 1 Highest Loss Streak 3 | . 1 3 3 1 . 3 To Critical Strikes . | . . . . . . . Average Backups 3 | . 1 2 1 3 3 3 Power . | . . . . . . . Propulsion . | . . . . . . . Utility 2 | . . 2 1 2 3 2 Weapon . | . . . . . . . Tool/Special . | . . . . . . . Unused Backups 4 | . . 1 1 1 . 1 Power . | . . . . . . . Propulsion 2 | . . . 1 . . 1 Utility . | . . . . . . . Weapon 2 | . . 1 . 1 . . Tool/Special . | . . . . . . . Average Slot Usage (%) 72 | . 93 54 66 72 76 92 Engine 7 | . 14 3 8 7 11 4 Treads 1 | . . . 6 1 . . Leg 17 | . . 19 4 19 22 29 Flight 1 | . . . 7 . . . Device 24 | . 10 1 19 32 32 32 Energy Cannon 7 | . . . 7 11 11 10 Ballistic Gun 5 | . 28 19 4 . . . Peak Build Rating 38 | 6 9 9 15 17 38 32 Average Rating 14 | 4 8 4 9 16 20 28 On Entrance 10 | . 6 8 8 12 17 22 Avg Prop Armor Cover (%) 2 | . . . 2 . . . Naked Turns 1 | . . 1 . . . . Heaviest Build 20 | 14 15 10 14 20 20 20 Greatest Support 43 | 20 20 20 43 23 20 40 Greatest Overweight (x) 3 | . . 2 3 . . . Average Overweight (x) . | . . . . . . . Largest Inventory Capacity 40 | 8 8 5 5 5 40 5 Average Capacity 5 | 7 7 5 5 5 5 5 Most Carried 5 | 2 3 4 5 5 5 5 Average Carried 3 | . 1 2 1 3 3 3 Final Capacity 8 | 8 5 5 5 5 5 5 Final Carried 4 | . 2 3 2 4 3 3 Class Distribution -------------------- 91% | Mutant 6% | Scavenger-Assassin Dominant Class ---------------- Mutant | -10/Materials Mutant | -10/Mines Mutant | -9/Materials Mutant | -9/Mines Mutant | -9/Exiles Scavenger-Assassin | -8/Mines Resources | -11 -10 -10 -9 -9 -9 -8 ----------- Run | Yrd Mat Min Mat Min Exi Min Matter Collected 1004 | 211 103 196 259 95 . 140 Remotely . | . . . . . . . Salvage Created 905 | . 103 144 374 81 . 203 Parts 66 | . 12 19 25 3 . 7 Haulers Intercepted . | . . . . . . . Recyclers Shooed . | . . . . . . . Parts Field Recycled . | . . . . . . . Retrieved Matter . | . . . . . . . Parts Self-Destructed . | . . . . . . . Prevented . | . . . . . . . Parts Restored . | . . . . . . . Kills | -11 -10 -10 -9 -9 -9 -8 ------- Run | Yrd Mat Min Mat Min Exi Min Combat Hostiles Destroyed 29 | . 2 10 11 2 . 4 Melee 4 | . . . . . . 4 Guns 11 | . 2 2 7 . . . Cannons 6 | . . . 4 2 . . AOE 8 | . . 8 . . . . Classes Destroyed 5 | . 3 1 1 . . . Tunneler 1 | . 1 . . . . . Watcher 2 | . 1 . 1 . . . Swarmer 12 | . . 6 6 . . . Grunt 14 | . 2 4 2 2 . 4 Sentry 3 | . . . 3 . . . Best Kill Streak 3 | . 1 3 3 1 . 3 Combat Bots Only 3 | . 1 3 3 1 . 3 Max Kills in Single Turn 3 | . 1 3 1 1 . 1 Gunslinging . | . . . . . . . Exploded 3 | . . 3 . . . . Melee 1 | . . . . . . 1 Uniques/NPCs Destroyed . | . . . . . . . Combat | -11 -10 -10 -9 -9 -9 -8 -------- Run | Yrd Mat Min Mat Min Exi Min Hostile Shots Fired 226 | . 31 26 111 6 . 52 Missed 62 | . 10 11 30 . . 11 Hits 164 | . 21 15 81 6 . 41 Melee 2 | . . . . . . 2 Projectile 162 | . 21 15 81 6 . 39 Critical Strikes 5 | . . . 3 1 . 1 Damage Taken 2207 | . 229 281 928 92 . 677 Core 520 | . 53 62 280 17 . 108 Absorbed by Shields . | . . . . . . . Core Remaining (%) 77 | 100 . 54 . . . . Volleys Fired 90 | . 18 19 35 9 . 9 Largest 2 | . 2 2 2 1 . 1 Hottest 101 | . 40 100 101 80 . 80 Shots Fired 129 | . 36 25 50 9 . 9 Gun 82 | . 36 14 32 . . . Cannon 31 | . . . 13 9 . 9 Launcher 10 | . . 10 . . . . Special 6 | . . 1 5 . . . Kinetic 73 | . 36 14 23 . . . Thermal 24 | . . 1 5 9 . 9 Explosive 10 | . . 10 . . . . Electromagnetic 22 | . . . 22 . . . Robot Hit Streak 15 | . 6 5 15 5 . 3 Robot Miss Streak 5 | . 5 2 4 1 . 2 Penetration Max . | . . . . . . . Secondary Targets . | . . . . . . . Shots Hit Robots 81 | . 17 10 34 5 . 15 Core Hits 46 | . 6 15 17 3 . 5 Critical Kills . | . . . . . . . Critical Parts Destroyed . | . . . . . . . Critical Strikes 1 | . . . . . . 1 Sever 1 | . . . . . . 1 Melee Attacks 12 | . . . . . . 12 Impact . | . . . . . . . Slashing 12 | . . . . . . 12 Piercing . | . . . . . . . Sneak Attacks . | . . . . . . . Combat Hostiles . | . . . . . . . Follow-up Attacks . | . . . . . . . Damage Inflicted 1896 | . 216 518 532 158 . 472 Guns 579 | . 216 57 306 . . . Cannons 541 | . . . 226 158 . 157 Explosions 461 | . . 461 . . . . Melee 315 | . . . . . . 315 Ramming . | . . . . . . . Kinetic 474 | . 216 57 201 . . . Thermal 315 | . . . . 158 . 157 Explosive 461 | . . 461 . . . . Electromagnetic 331 | . . . 331 . . . Impact . | . . . . . . . Slashing 315 | . . . . . . 315 Piercing . | . . . . . . . Highest Corruption . | . . . . . . . Average Corruption . | . . . . . . . Corruption Purged . | . . . . . . . Corruption Blocked . | . . . . . . . Overload Shots . | . . . . . . . Overflow Damage 102 | . . 71 . . . 31 Projectiles . | . . . . . . . Explosions 71 | . . 71 . . . . Melee 31 | . . . . . . 31 Knockbacks . | . . . . . . . Impact . | . . . . . . . Kinetic . | . . . . . . . Secondary . | . . . . . . . Self-Inflicted Damage 109 | . . 109 . . . . Shots 3 | . . 3 . . . . Rammed . | . . . . . . . Targets Rammed . | . . . . . . . Kicked . | . . . . . . . Crushed . | . . . . . . . Highest Temperature 320 | . 12 50 148 207 . 320 Average Temperature 74 | . 8 18 30 79 . 153 Received Heat Transfer 867 | . 126 72 231 69 . 369 Siege Activations . | . . . . . . . Martial Activations . | . . . . . . . Shielding Activations . | . . . . . . . Robots Disrupted . | . . . . . . . Combat Hostiles . | . . . . . . . Robots Corrupted . | . . . . . . . Combat Hostiles . | . . . . . . . Parts Fried . | . . . . . . . Impact Corruptions . | . . . . . . . Robots Melted . | . . . . . . . Combat Hostiles . | . . . . . . . Parts Melted 2 | . . . . 2 . . Heat Transferred 600 | . . . . 300 . 300 Parts Sabotaged . | . . . . . . . Parts Stolen . | . . . . . . . Parts Stripped . | . . . . . . . Power Chain Reactions . | . . . . . . . Alert | -11 -10 -10 -9 -9 -9 -8 ------- Run | Yrd Mat Min Mat Min Exi Min Maximum Alert Level 1 | . . 1 . . . . Low Security (%) 99 | 100 100 96 100 100 . 100 Level 1 . | . . 3 . . . . Level 2 . | . . . . . . . Level 3 . | . . . . . . . Level 4 . | . . . . . . . Level 5 . | . . . . . . . High Security . | . . . . . . . Max Security . | . . . . . . . Peak Influence 216 | . 20 216 97 30 . 61 Initial 12 | . . . . 12 . . Average 32 | . 5 96 48 1 . 10 Influence Increases 888 | . 52 338 344 62 . 92 Destroy 0b10 Robot/C 580 | . 40 200 220 40 . 80 Destroy 0b10 Robot/NC 15 | . 10 . 5 . . . Destroy Leader 124 | . 2 40 52 20 . 10 Successful Hack 7 | . . . 7 . . . Disable Machine 15 | . . 15 . . . . Destroy Structure 87 | . . 83 . 2 . 2 Lose Combat Pursuer 60 | . . . 60 . . . Influence Decreases 868 | . 52 338 313 93 . 72 Entered New Map 19 | . . . . 19 . . Time Decay 723 | . 42 288 248 74 . 71 Lost Part 126 | . 10 50 65 . . 1 Squads Dispatched 5 | . 1 . 3 1 . . Investigation 2 | . . . 1 1 . . Extermination . | . . . . . . . Reinforcement 3 | . 1 . 2 . . . Assault . | . . . . . . . Garrison . | . . . . . . . Intercept . | . . . . . . . Searches Triggered . | . . . . . . . Construction Impeded . | . . . . . . . Haulers Reinforced . | . . . . . . . Active Scanning Responses . | . . . . . . . Cargo Convoy Interrupts . | . . . . . . . Stealth | -11 -10 -10 -9 -9 -9 -8 --------- Run | Yrd Mat Min Mat Min Exi Min Distress Signals 1 | . 1 . . . . . Communications Jammed . | . . . . . . . Distress Signals . | . . . . . . . Times Spotted 42 | . 8 8 17 3 . 6 Peak Tracking Total 4 | . 4 3 4 2 . 3 Tactical Retreats 4 | . . . 4 . . . Traps | -11 -10 -10 -9 -9 -9 -8 ------- Run | Yrd Mat Min Mat Min Exi Min Traps Triggered . | . . . . . . . Indirectly . | . . . . . . . Trap Hack Attempts . | . . . . . . . Triggered . | . . . . . . . Disarmed 4 | . . . 4 . . . Reprogrammed . | . . . . . . . Reused . | . . . . . . . Traps Extracted . | . . . . . . . Installed . | . . . . . . . Triggered . | . . . . . . . Machines | -11 -10 -10 -9 -9 -9 -8 ---------- Run | Yrd Mat Min Mat Min Exi Min Machines Disabled 1 | . . 1 . . . . Max in Single Turn 1 | . . 1 . . . . Machines Repaired . | . . . . . . . Machines Dismantled . | . . . . . . . Machines Sabotaged . | . . . . . . . Overloaded Fab Kills . | . . . . . . . Hacking | -11 -10 -10 -9 -9 -9 -8 --------- Run | Yrd Mat Min Mat Min Exi Min Machines Accessed 10 | . 1 . 3 2 4 . Terminals 4 | . 1 . 2 1 . . Fabricators . | . . . . . . . Repair Stations . | . . . . . . . Recycling Units . | . . . . . . . Scanalyzers 1 | . . . 1 . . . Garrison Access . | . . . . . . . Total Hacks 63 | . 4 . 9 2 48 . Successful 56 | . 1 . 5 2 48 . Failed 6 | . 3 . 3 . . . Catastrophic 1 | . . . 1 . . . Database Lockouts 1 | . . . 1 . . . Manual 3 | . . . 1 . 2 . Terminals 11 | . 4 . 6 1 . . Fabricators . | . . . . . . . Repair Stations . | . . . . . . . Recycling Units . | . . . . . . . Scanalyzers 3 | . . . 3 . . . Garrison Access . | . . . . . . . Terminal Hacks 54 | . 1 . 3 2 48 . Record 48 | . . . . . 48 . Robot Analysis 1 | . 1 . . . . . Open Door 1 | . . . . 1 . . Locate Traps 1 | . . . 1 . . . Disarm Traps 1 | . . . 1 . . . Zone Layout 2 | . . . 1 1 . . Fabricator Hacks . | . . . . . . . Repair Station Hacks . | . . . . . . . Recycling Unit Hacks . | . . . . . . . Scanalyzer 2 | . . . 2 . . . Insert Component 1 | . . . 1 . . . Retrieve Study 1 | . . . 1 . . . Garrison Access Hacks . | . . . . . . . Unauthorized Hacks . | . . . . . . . Terminals . | . . . . . . . Fabricators . | . . . . . . . Repair Stations . | . . . . . . . Recycling Units . | . . . . . . . Scanalyzers . | . . . . . . . Garrison Access . | . . . . . . . Data Cores Recovered . | . . . . . . . Used . | . . . . . . . Hacking Detections 3 | . 1 . 2 . . . Full Trace Events 2 | . . . 2 . . . Feedback Events . | . . . . . . . Feedback Blocked . | . . . . . . . Robot Schematics Acquired . | . . . . . . . Robots Built . | . . . . . . . Authchips . | . . . . . . . Time . | . . . . . . . Total Robot Build Rating . | . . . . . . . Part Schematics Acquired . | . . . . . . . Parts Built . | . . . . . . . Authchips . | . . . . . . . Time . | . . . . . . . Total Part Build Rating . | . . . . . . . Part Studies Acquired 1 | . . . 1 . . . Parts Repaired . | . . . . . . . Time . | . . . . . . . Parts Recycled . | . . . . . . . Recycled Matter . | . . . . . . . Retrieved Matter . | . . . . . . . Retrieved Components . | . . . . . . . Parts Scanalyzed . | . . . . . . . Part Schematics Acquired . | . . . . . . . Parts Damaged . | . . . . . . . Bothacking | -11 -10 -10 -9 -9 -9 -8 ------------ Run | Yrd Mat Min Mat Min Exi Min Used RIF Installer . | . . . . . . . Robots Hacked . | . . . . . . . Non-combat . | . . . . . . . Combat . | . . . . . . . Robot Hacks Applied . | . . . . . . . Relay Couplers Released . | . . . . . . . Fabnet Peak Effective % . | . . . . . . . Robots Rewired . | . . . . . . . Allies Hacked . | . . . . . . . Hacks Repelled . | . . . . . . . Allies | -11 -10 -10 -9 -9 -9 -8 -------- Run | Yrd Mat Min Mat Min Exi Min Total Allies 3 | . . 3 . . . . Largest Group 3 | . . 3 . . . . Highest-Rated Group 81 | . . 81 . . . . Highest-Rated Ally 31 | . . 31 . . . . Total Orders . | . . . . . . . Ally Attacks . | . . . . . . . Total Damage . | . . . . . . . Kills . | . . . . . . . Allies Corrupted . | . . . . . . . Allies Melted . | . . . . . . . Intel | -11 -10 -10 -9 -9 -9 -8 ------- Run | Yrd Mat Min Mat Min Exi Min Active Infowar (turns) 2829 | . 128 92 499 890 797 423 Terrain 2531 | . 128 92 201 890 797 423 Seismic 395 | . . . 395 . . . Robot Analysis Total 1 | . 1 . . . . . Derelict Logs Recovered 4 | . . 2 . 2 . . Drone Launches . | . . . . . . . Drone Recoveries . | . . . . . . . Exploration | -11 -10 -10 -9 -9 -9 -8 ------------- Run | Yrd Mat Min Mat Min Exi Min Turns Passed 4146 | 58 172 726 613 1345 803 429 Spaces Moved 2682 | 60 140 570 311 667 638 296 Core 64 | 6 . 58 . . . . Treads 215 | . . . 150 65 . . Legs 2003 | . . 400 67 602 638 296 Wheels 159 | 54 105 . . . . . Hover 147 | . 35 112 . . . . Flight 94 | . . . 94 . . . Fastest Speed 34 | 50 56 56 34 120 120 120 Average Speed 118 | 77 74 111 143 123 120 120 Slowest Speed 280 | 80 80 150 280 160 120 120 Overloaded Moves . | . . . . . . . Propulsion Burnouts . | . . . . . . . Robots Hopped . | . . . . . . . Potential Cave-ins . | . . . . . . . Cave-ins Triggered . | . . . . . . . Exploration Rate (%) 57 | 3 22 79 38 91 90 80 Regions Visited 6 Branch Regions 4 Pre-discovered Areas 2 | . . . . 1 1 . Known Exits Taken 1 | . . . 1 . . . Unknown Exits Taken 5 | 1 1 1 . 1 1 . Scrap Searched 3 | . . 1 . 1 . 1 Spaces Dug 2 | . . . . 2 . . Terrain Destroyed 117 | . . 113 . 2 . 2 Melee . | . . . . . . . Projectile 4 | . . . . 2 . 2 AOE 113 | . . 113 . . . . Terrain Rammed . | . . . . . . . Walls Destroyed . | . . . . . . . Machines Disabled . | . . . . . . . Actions | -11 -10 -10 -9 -9 -9 -8 --------- Run | Yrd Mat Min Mat Min Exi Min Total 3506 | 71 172 637 426 1183 676 341 Wait 588 | . 3 32 52 475 19 7 Move 2676 | 59 139 569 310 666 637 296 Hop . | . . . . . . . Pick Up 45 | 6 5 6 11 10 1 6 Fast Attach 7 | . . . . . 7 . Attach 39 | 6 2 6 13 10 . 2 Detach 14 | . 1 3 2 8 . . Swap 7 | . 2 . . . 1 4 Drop 26 | . 2 2 3 5 9 5 Fire 90 | . 18 19 35 9 . 9 Melee 12 | . . . . . . 12 Ram . | . . . . . . . Kick . | . . . . . . . Crush . | . . . . . . . Escape Stasis . | . . . . . . . Rewire 2 | . . . . . 2 . Trap . | . . . . . . . Miscellaneous . | . . . . . . . Route ------- -11/Scrapyard -10/Materials -10/Mines (discovered 2 exits: *Mat x2) -9/Materials (discovered 5 exits: *Mat x2 / *Min x2 / [*Sto]) -9/Mines (discovered 3 exits: *Mat x2 / *Exi) -9/Exiles -8/Mines (discovered 2 exits: *Mat x2) History --------- Turn | Location | Event 21 | -11/Scrapyard | Discovered new exit (range 16) 59 | -11/Scrapyard | Entered Materials 194 | -10/Materials | Discovered new exit (range 15) 231 | -10/Materials | Entered Mines 246 | -10/Mines | Received a Rocket Launcher from a helpful Derelict 265 | -10/Mines | Learned Materials emergency access door positions 288 | -10/Mines | Learned 4 Materials zone layouts 314 | -10/Mines | Build established: Mutant 356 | -10/Mines | Lost 3 parts (2n1u) 720 | -10/Mines | Discovered new exit (range 3) 727 | -10/Mines | Received a Mining Laser from a helpful Derelict 824 | -10/Mines | Discovered new exit (range 15) 830 | -10/Mines | A weapon hastily lodged in a ceiling crevice suddenly fell to the ground 957 | -10/Mines | Entered Materials 957 | -9/Materials | Evolved 2 slots: Propulsion x1, Utility x1 958 | -9/Materials | Identified exit to Mines 958 | -9/Materials | Identified exit to Materials 1084 | -9/Materials | Central database locked down 1180 | -9/Materials | Lost 3 parts (1n2w) 1352 | -9/Materials | Discovered new exit (range 10) 1470 | -9/Materials | Core integrity fell below 50% 1497 | -9/Materials | Lost 3 parts (2n1u) 1554 | -9/Materials | Discovered exit to Mines (range 11) 1570 | -9/Materials | Entered Mines 1583 | -9/Mines | Met a Derelict shopkeep closing up shop 1651 | -9/Mines | Met a Derelict bent on vengeance 2068 | -9/Mines | Learned location of Storage (-9) 2473 | -9/Mines | Discovered exit to Materials (range 6) 2750 | -9/Mines | Learned Materials trap positions 2841 | -9/Mines | Discovered exit to Materials (range 13) 2872 | -9/Mines | Learned Materials emergency access door positions 2909 | -9/Mines | Deemed a non-threat by the Exiles lab entrance 2909 | -9/Mines | Discovered new exit (range 5) 2915 | -9/Mines | Entered Exiles 2948 | -9/Exiles | Met 8R-AWN 2967 | -9/Exiles | Met EX-HEX 3013 | -9/Exiles | Met EX-DEC 3106 | -9/Exiles | Met EX-BIN 3123 | -9/Exiles | Aligned with FarCom system 3124 | -9/Exiles | Given EX-Vault access code 3190 | -9/Exiles | Opened EX-Vault 3198 | -9/Exiles | Found Prototype Device 3199 | -9/Exiles | Identified PSU Rigger 3206 | -9/Exiles | Found Prototype Device 3206 | -9/Exiles | Identified Trap Reconfigurator 3213 | -9/Exiles | Found Prototype Storage 3213 | -9/Exiles | Identified Lightpack 2.0 3249 | -9/Exiles | Warned to stay clear of 0b10 Research branches 3304 | -9/Exiles | Learned location of Zion (-6) 3376 | -9/Exiles | Discovered new exit (range 14) 3483 | -9/Exiles | Visited The Gauntlet 3718 | -9/Exiles | Left Exiles lab with Trap Reconfigurator 3718 | -9/Exiles | Entered Mines 3780 | -8/Mines | Discovered exit to Materials (range 16) 3833 | -8/Mines | Core integrity fell below 20% 3892 | -8/Mines | Discovered exit to Materials (range 9) 4147 | -8/Mines | Destroyed by G-47 Trooper with Particle Gun Last Messages --------------- 03870_ Acquired Carbon-fiber Leg. 03872_ Dropped Aluminum Leg. 03875_ Acquired 30 matter. 03879_ Acquired Lgt. Nuclear Core. 03882_ Dropped Ion Engine. 03882_ Dropped Imp. Shield Generator. 03885_ Acquired 10 matter. 03892_ EXIT=FOUND: MATERIALS 03998_ K-01 Serf collects debris. 04076_ T-07 Excavator is excavating. 04108_ U-05 Engineer builds a Wall. 04128_ L-31 Rogue heat damages Core Shielding, Imp. Aluminum Leg. 04128_ Plasma Cannon destroyed. 04129_ L-31 Rogue destroyed. 04130_ Critical hit (Burn: +37). 04131_ Particle Charger destroyed. 04141_ Imp. Terrain Scanner destroyed. 04142_ G-47 Trooper destroyed. 04147_ U-05 Engineer builds a Wall. Map ----- +----------------------------------------------------+ | ???????????????# ###?# ##????????? | | ???????????#???## ###### #???#?????? | | ?#########??????### #?# %! =#??????#??? | | ?# #??##????####?# #####?#?????#? | | ?# #?????????????# #?????#?#????? | | ?# #?#?????????### #??##?#?#????# | | ?# #??????????## #????????????? | | ?# #?????#??### #?????#??????? | | ?# #???????#?# < #????????????? | | ### #####??????#??# #??#?????????? | | ??# #?????????#???# ##????????????? | | ??# #?????????????#### #??#??????????? | | ??# #?????????#?????# #?????????????? | | ??# #?#?#???????????# #?#???????????? | | ?## #???????#???????# ##??#??????????? | | ?## #??????#?#??????# #??#??????????#? | | ??# #########???????# #??????????????? | | ??# #???????# #??????????????? | | ??# #??#????# #??????????????? | | ??######### #?????### #??????????????? | | ?????#????# #???????# #???#??????????? | | ???????#??# #?????### ##?????????????? | | ?????????## #??##### ##????????????? | | ????????## #### #???###??????? | | ???????## ## %##?# ###????? | | ???????# ## g@### #?????? | | ???????# #### u #?????? | | ?#?????## ##??# #?????? | | ??#?????## #???# ##?????? | | ?????????# #???## ####?????#? | | ?????????# #????## ##???#?????? | | ??????#??## #?#???# ##?????????? | | ??????????### #??#??# % #??????????? | | ????????????### ####??# #??????????? | | ????######???## #??## ##??????????? | | ???## ##???# ## #???## #???????????? | | #### ##### ## #????# #???????????? | | # ## ###### ######??????? | | ## ###????? | | ########### """ #????# | | ##????????## """ ## ## #????? | | ##?????#?### """ ## #?# #????? | | ##???????## ## #??###????? | | #??????### ## ## #??##?????? | | ## #?????## #### #???#?????? | | ?# #?????# #??## #####?????????? | | ?# ????# #???####???????#?????? | | ?# ???## ##????????????????????? | | ?##### #?########???????????#?????????? | | ?????? #????#???#?????????????????????? | +----------------------------------------------------+ Best States ------------- Heat Dissipation 28 Energy Generation 14 Energy Capacity 500 Matter Stores 300 Matter Capacity 300 Sight Range 16 Terrain Scan Range 16 Terrain Scan Density 10 Evasion (%) 63 Recoil Reduction 2 Particle Charging 15 Trap Extractor Capacity 4 Item Schematics ----------------- None Robot Schematics ------------------ None Fabricated ------------ Nothing Repaired ---------- Nothing Studied --------- VTOL Module | -9/Materials | Hacked Alien Tech Used ----------------- None Achievements -------------- Universal Adapter Challenges ------------ None Game ------ Seed ImpactFactoryCycler Manual? 0 Play Time 00:35:39 Cumulative 12.7 hours Start 2026.08.10 @ 00:37:53 End 2026.08.10 @ 01:19:01 Sessions 1 Manual Loads 0 Difficulty Rogue Special Mode None Game No. 34 Rogue 27 Adventurer 7 Explorer 0 Win Type - Total 0 Types 0/0/0/0/0/0/0/0/0/0 Lore% 10 Gallery% 17 Achievement% 13 Wizard Run 0 Options --------- Layout 1 ASCII 0 Keyboard 0 Movement Mouse Keybinds 0 Fullscreen 1 Font 24/Smallcaps Map View 50x35 Zoom Use 0% Tactical HUD 1 Map Filters NONE Filters NONE Steam 1 RUN: 98e38848-d80f-403b-9123-68e54f2bf34b